bitfinex/quotes_SOLUSD_20250731
["timestamp","ask_amount","ask_price","bid_price","bid_amount"]
[1753976273508,98.77750468,177.35,177.32,11.66035789]
[1753976273708,0.72,177.34,177.32,6.02085905]
[1753976273922,0.72,177.34,177.3,32.72085905]
[1753976274123,0.72,177.34,177.3,38.36095226]
[1753976274333,0.72,177.34,177.31,6.02085905]
[1753976275228,98.05750468,177.35,177.31,6.02085905]
[1753976275430,98.77750468,177.35,177.31,6.02085905]
[1753976275606,98.77750468,177.35,177.31,11.66058228]
[1753976276005,98.77750468,177.35,177.31,6.02085905]
[1753976276221,0.72,177.34,177.31,6.02085905]
[1753976276928,98.05750468,177.35,177.32,6.02085905]
[1753976277130,98.77750468,177.35,177.32,6.02085905]
[1753976277303,98.05750468,177.35,177.33,6.02085905]
[1753976277630,98.05750468,177.35,177.34,6.02085905]
[1753976277817,98.05750468,177.38,177.34,6.72085905]
[1753976278017,98.77750468,177.38,177.35,6.02085905]
[1753976278716,98.77750468,177.38,177.34,0.7]
[1753976278921,98.77750468,177.38,177.35,6.02085905]
[1753976279927,98.77750468,177.38,177.33,40.04]
[1753976279928,0.72,177.37,177.33,51.69997342]
[1753976280118,0.72,177.36,177.33,51.69997342]
[1753976281635,98.77750468,177.38,177.34,6.02085905]
[1753976281837,104.07836373,177.38,177.33,52.39997342]
[1753976282028,0.72,177.37,177.33,52.39997342]
[1753976282430,0.72,177.37,177.33,46.37911437]
[1753976282738,0.72,177.37,177.33,52.39997342]
[1753976284137,0.72,177.37,177.33,46.37911437]
[1753976284313,0.72,177.37,177.33,52.39997342]
[1753976284508,98.05750468,177.38,177.34,6.71085905]
[1753976284817,6.72085905,177.37,177.33,46.75085905]
[1753976285047,6.02085905,177.37,177.33,40.04]
[1753976285233,6.72085905,177.36,177.33,40.04]
[1753976285544,103.69525278,177.38,177.33,40.04]
[1753976285545,6.02085905,177.37,177.33,40.04]
[1753976285720,6.72085905,177.37,177.33,40.73]
[1753976285924,104.07836373,177.38,177.33,46.06085905]
[1753976286121,0.7,177.37,177.33,52.39000933]
[1753976286327,6.02085905,177.37,177.33,45.67915028]
[1753976286528,0.7,177.36,177.33,45.67915028]
[1753976286726,0.7,177.36,177.33,40.04]
[1753976287843,6.02085905,177.37,177.33,40.04]
[1753976288153,6.72085905,177.37,177.33,40.73]
[1753976288317,11.65881214,177.37,177.33,40.04]
[1753976288643,0.7,177.36,177.33,40.04]
[1753976289320,103.6952403,177.38,177.33,40.04]
[1753976289523,6.72085905,177.37,177.33,40.73]
[1753976290515,103.6952403,177.38,177.34,0.69]
[1753976290724,104.07836373,177.38,177.35,0.69]
[1753976291227,104.77836373,177.38,177.34,6.02085905]
[1753976291622,110.41600281,177.38,177.34,0.69]
[1753976292328,110.41600281,177.38,177.34,6.71085905]
[1753976293122,109.71600281,177.38,177.33,45.67917265]
[1753976293325,0.7,177.37,177.34,6.02085905]
[1753976293844,104.77836373,177.38,177.34,6.02085905]
[1753976294026,104.07836373,177.38,177.34,6.02085905]
[1753976294337,98.75750468,177.38,177.34,12.34970315]
[1753976294640,98.75750468,177.38,177.34,6.71085905]
[1753976294847,98.05750468,177.38,177.35,0.69]
[1753976295345,98.75750468,177.38,177.35,0.69]
[1753976295638,104.39513884,177.38,177.34,6.02085905]
[1753976295844,104.39513884,177.38,177.34,6.71085905]
[1753976296752,110.41599789,177.38,177.34,6.71085905]
[1753976297248,104.39513884,177.38,177.34,6.71085905]
[1753976297552,110.41599789,177.38,177.34,6.71085905]
[1753976297756,104.39513884,177.38,177.34,6.71085905]
[1753976297938,110.41599789,177.38,177.34,6.71085905]
[1753976298355,110.41599789,177.38,177.34,0.69]
[1753976298758,110.41599789,177.38,177.34,6.71085905]
[1753976299052,0.7,177.37,177.34,6.71085905]
[1753976300130,109.71599789,177.38,177.34,6.71085905]
[1753976300331,110.41599789,177.38,177.34,6.71085905]
[1753976300532,0.7,177.37,177.34,6.71085905]
[1753976301042,0.7,177.37,177.34,6.02085905]
[1753976301239,109.71599789,177.38,177.34,0.69]
[1753976301551,104.39513884,177.38,177.34,6.71085905]
[1753976301755,110.41599789,177.38,177.34,6.71085905]
[1753976303647,98.75750468,177.38,177.34,6.71085905]
[1753976303834,110.41604209,177.38,177.34,6.71085905]
[1753976304236,104.07836373,177.38,177.34,11.65972044]
[1753976304436,104.07836373,177.38,177.35,0.69]
[1753976304651,98.75750468,177.38,177.35,0.69]
[1753976304844,104.77836373,177.38,177.34,6.02085905]
[1753976305136,110.41611525,177.38,177.34,6.71085905]
[1753976305537,109.71611525,177.38,177.34,6.71085905]
[1753976305733,6.33796152,177.37,177.33,46.06085905]
[1753976305953,11.65882057,177.37,177.33,46.06085905]
[1753976306154,6.72085905,177.36,177.29,1.2540476]
[1753976306361,6.02085905,177.34,177.3,40.0]
[1753976306665,0.7,177.33,177.3,40.0]
[1753976307050,6.72085905,177.35,177.3,46.71085905]
[1753976307259,6.72085905,177.35,177.31,0.69]
[1753976308153,6.72085905,177.35,177.31,6.329829]
[1753976308352,6.72085905,177.35,177.31,12.35068805]
[1753976308757,6.72085905,177.35,177.31,6.71085905]
[1753976308962,6.02085905,177.35,177.3,51.66093688]
[1753976309141,6.72085905,177.34,177.3,40.0]
[1753976309464,6.72085905,177.34,177.31,0.69]
[1753976309765,0.7,177.34,177.31,0.69]
[1753976309958,0.7,177.33,177.3,40.0]
[1753976310156,0.7,177.33,177.3,45.64012928]
[1753976310464,6.02085905,177.34,177.3,46.33012928]
[1753976310664,0.7,177.33,177.3,40.0]
[1753976310840,6.02085905,177.31,177.3,40.0]
[1753976311038,6.72085905,177.31,177.27,40.0]
[1753976311350,98.05750468,177.33,177.26,40.0]
[1753976311351,6.02085905,177.28,177.26,40.0]
[1753976311551,6.02085905,177.27,177.26,40.0]
[1753976311956,6.72085905,177.27,177.23,2.86197738]
[1753976312261,6.02085905,177.26,177.24,40.0]
[1753976313661,6.72085905,177.25,177.14,16.784684]
[1753976313865,6.02085905,177.2,177.17,41.33]
[1753976314037,6.02085905,177.21,177.18,45.6437768]
[1753976314239,6.02085905,177.21,177.19,0.68]
[1753976314651,6.02085905,177.22,177.19,0.68]
[1753976315168,6.02085905,177.23,177.2,0.68]
[1753976315350,6.02085905,177.23,177.21,40.0]
[1753976315753,6.68085905,177.23,177.21,40.0]
[1753976316466,6.02085905,177.23,177.2,5.64305197]
[1753976316664,124.05750468,177.29,177.21,40.68]
[1753976316967,98.05750468,177.29,177.25,6.02085905]
[1753976317166,40.0,177.34,177.26,46.70085905]
[1753976317167,0.66,177.31,177.26,46.70085905]
[1753976317346,6.02085905,177.3,177.26,46.70085905]
[1753976317763,6.68085905,177.3,177.26,40.68]
[1753976317952,0.66,177.3,177.26,46.70085905]
[1753976318153,6.02085905,177.3,177.27,0.68]
[1753976318368,0.66,177.29,177.26,45.64132978]
[1753976318552,6.02085905,177.3,177.26,46.32132978]
[1753976318753,5.63928741,177.33,177.26,52.34218883]
[1753976318948,6.68085905,177.32,177.27,6.02085905]
[1753976319167,6.68085905,177.32,177.27,6.70085905]
[1753976319468,6.68085905,177.32,177.26,46.20547284]
[1753976319469,98.05750468,177.34,177.3,6.02085905]
[1753976319675,98.71750468,177.34,177.3,46.02085905]
[1753976320152,0.66,177.33,177.3,46.02085905]
[1753976320355,0.66,177.33,177.3,51.66085962]
[1753976320573,0.66,177.32,177.26,32.02085905]
[1753976320775,6.02085905,177.3,177.27,40.0]
[1753976320972,0.66,177.29,177.27,40.0]
[1753976321650,6.68085905,177.28,177.23,26.0]
[1753976321878,6.02085905,177.26,177.24,40.0]
[1753976322054,6.68085905,177.26,177.24,40.0]
[1753976322452,6.68085905,177.25,177.21,5.64297299]
[1753976322654,6.02085905,177.24,177.22,40.0]
[1753976322864,5.64154271,177.26,177.22,40.0]
[1753976323074,6.68085905,177.23,177.22,40.0]
[1753976323358,0.66,177.23,177.22,40.0]
[1753976323571,6.02085905,177.24,177.22,40.0]
[1753976323780,6.68085905,177.24,177.22,40.0]
[1753976323978,6.68085905,177.23,177.22,40.0]
[1753976324480,6.02085905,177.23,177.2,5.64332848]
[1753976324786,6.02085905,177.23,177.22,40.0]
[1753976325080,6.68085905,177.23,177.17,40.64]
[1753976325264,6.02085905,177.21,177.18,40.0]
[1753976325667,0.66,177.22,177.18,40.0]
[1753976325878,6.02085905,177.2,177.18,40.0]
[1753976326377,0.66,177.21,177.18,40.0]
[1753976326580,6.02085905,177.2,177.18,40.0]
[1753976327167,6.02085905,177.19,177.18,40.0]
[1753976327367,6.68085905,177.19,177.14,0.68]
[1753976327667,6.02085905,177.16,177.14,40.0]
[1753976327868,0.66,177.18,177.14,40.0]
[1753976328176,6.02085905,177.17,177.14,40.0]
[1753976328555,6.02085905,177.17,177.14,45.64516865]
[1753976328755,0.66,177.18,177.14,46.32516865]
[1753976328756,6.68085905,177.18,177.14,46.32516865]
[1753976328957,6.02085905,177.18,177.15,0.68]
[1753976330181,6.02085905,177.18,177.14,45.64516865]
[1753976330369,0.66,177.17,177.14,40.0]
[1753976330565,6.68085905,177.17,177.14,45.64514321]
[1753976330771,6.02085905,177.17,177.14,46.32514321]
[1753976330967,6.02085905,177.18,177.14,46.32514321]
[1753976331371,98.05750468,177.23,177.14,45.64514321]
[1753976331570,98.05750468,177.22,177.15,6.70085905]
[1753976331776,6.02085905,177.2,177.16,0.68]
[1753976331994,6.02085905,177.2,177.17,40.0]
[1753976332165,6.02085905,177.19,177.17,40.0]
[1753976332788,6.02085905,177.19,177.17,45.64428953]
[1753976333359,6.68085905,177.2,177.17,45.64428953]
[1753976334790,0.66,177.2,177.17,45.64428953]
[1753976334971,6.02085905,177.2,177.17,45.64428953]
[1753976335375,6.02085905,177.21,177.18,0.68]
[1753976335574,98.71750468,177.22,177.18,6.70085905]
[1753976336274,0.66,177.21,177.17,51.66514858]
[1753976336474,104.07836373,177.22,177.17,51.66514858]
[1753976336679,104.73836373,177.22,177.18,0.68]
[1753976337301,104.73836373,177.22,177.18,6.32372623]
[1753976338203,98.71750468,177.22,177.18,12.34458528]
[1753976338580,104.73836373,177.22,177.18,12.34458528]
[1753976338876,0.66,177.24,177.2,6.02085905]
[1753976339080,6.68085905,177.24,177.21,40.0]
[1753976339503,6.02085905,177.25,177.21,40.68]
[1753976339804,6.02085905,177.22,177.18,5.64372623]
[1753976340009,6.68085905,177.21,177.19,40.0]
[1753976340183,6.68085905,177.2,177.19,40.0]
[1753976340572,6.02085905,177.22,177.19,45.64356017]
[1753976340792,0.66,177.24,177.19,52.34441922]
[1753976340998,6.68085905,177.24,177.19,52.34441922]
[1753976341198,0.66,177.23,177.19,52.34441922]
[1753976341506,6.68085905,177.23,177.19,52.34441922]
[1753976341701,0.66,177.23,177.19,46.32356017]
[1753976341901,104.73836373,177.26,177.21,6.02085905]
[1753976342077,98.05750468,177.26,177.22,46.02085905]
[1753976342280,98.05750468,177.26,177.22,40.0]
[1753976342478,6.68085905,177.25,177.22,40.0]
[1753976342701,0.66,177.24,177.22,40.0]
[1753976342912,0.66,177.23,177.22,40.0]
[1753976343212,0.66,177.25,177.22,40.0]
[1753976343706,98.05750468,177.26,177.23,5.6423856]
[1753976343893,6.68085905,177.27,177.23,6.3223856]
[1753976344703,0.65,177.26,177.23,5.6423856]
[1753976345417,6.02085905,177.25,177.23,40.0]
[1753976345588,0.65,177.24,177.23,40.0]
[1753976346107,6.02085905,177.25,177.23,40.0]
[1753976346405,6.67085905,177.25,177.23,40.0]
[1753976346787,0.65,177.25,177.23,40.0]
[1753976348085,30.53387065,177.3,177.23,45.64226928]
[1753976348306,0.65,177.28,177.23,46.34226928]
[1753976348611,6.67085905,177.27,177.23,46.34226928]
[1753976349106,6.02085905,177.28,177.24,0.7]
[1753976349283,104.07836373,177.29,177.25,0.7]
[1753976349718,6.02085905,177.28,177.24,6.02085905]
[1753976350014,6.02085905,177.28,177.23,45.64226928]
[1753976350015,0.65,177.27,177.23,52.36312833]
[1753976351486,6.02085905,177.28,177.24,0.7]
[1753976351686,98.70750468,177.29,177.23,45.64226928]
[1753976351687,6.02085905,177.27,177.23,45.64226928]
[1753976351887,6.67085905,177.27,177.23,52.36312833]
[1753976352087,6.67085905,177.27,177.23,46.34226928]
[1753976352288,6.67085905,177.26,177.23,40.0]
[1753976352616,0.65,177.25,177.23,40.0]
[1753976353289,104.72836373,177.24,177.17,0.7]
[1753976353505,6.02085905,177.21,177.18,39.98]
[1753976353696,6.02085905,177.22,177.19,0.7]
[1753976354018,6.02085905,177.22,177.19,6.34358286]
[1753976354309,98.05750468,177.24,177.2,0.7]
[1753976354310,104.07836373,177.24,177.2,0.7]
[1753976354511,104.07836373,177.24,177.19,5.64358286]
[1753976354710,104.07836373,177.24,177.21,0.7]
[1753976355099,104.72836373,177.24,177.19,6.34358286]
[1753976355293,104.72836373,177.24,177.2,0.7]
[1753976355614,104.07836373,177.24,177.2,0.7]
[1753976356108,104.07836373,177.24,177.2,6.34324368]
[1753976356318,104.72836373,177.24,177.2,6.34324368]
[1753976356491,98.05750468,177.24,177.21,6.72085905]
[1753976356815,98.05750468,177.24,177.22,6.72085905]
[1753976357321,98.05750468,177.24,177.23,6.72085905]
[1753976358114,98.05750468,177.24,177.23,12.36324465]
[1753976358415,98.05750468,177.24,177.23,11.66324465]
[1753976358612,98.05750468,177.24,177.23,12.36324465]
[1753976359003,98.05750468,177.24,177.23,11.66324465]
[1753976359324,98.05750468,177.24,177.23,12.36324465]
[1753976360002,98.70750468,177.24,177.21,45.62291701]
[1753976360315,6.67085905,177.23,177.21,39.98]
[1753976360516,6.67085905,177.23,177.21,45.62298681]
[1753976360714,104.07836373,177.24,177.21,45.62298681]
[1753976361020,98.05750468,177.24,177.21,45.62298681]
[1753976361515,98.05750468,177.24,177.21,51.64384586]
[1753976361708,98.05750468,177.24,177.23,6.02085905]
[1753976361902,98.05750468,177.24,177.23,6.72085905]
[1753976362107,98.05750468,177.24,177.23,12.36324465]
[1753976363116,98.05750468,177.24,177.23,6.3423856]
[1753976363423,98.05750468,177.24,177.23,11.66324465]
[1753976366114,98.70750468,177.27,177.23,11.66324465]
[1753976366317,98.05750468,177.27,177.25,5.64174894]
[1753976367425,98.70750468,177.27,177.25,5.64174894]
[1753976368224,0.65,177.26,177.25,5.64174894]
[1753976368430,0.65,177.26,177.24,45.62196161]
[1753976368730,0.65,177.25,177.24,45.62196161]
[1753976369130,0.65,177.25,177.24,39.98]
[1753976369614,6.67085905,177.25,177.24,39.98]
[1753976370015,6.67085905,177.25,177.21,5.64290407]
[1753976370232,6.67085905,177.24,177.22,39.98]
[1753976370927,0.65,177.23,177.22,39.98]
[1753976372428,6.02085905,177.26,177.22,5.64270398]
[1753976372631,0.65,177.25,177.22,45.60270398]
[1753976372815,0.65,177.24,177.22,45.60270398]
[1753976373428,6.02085905,177.26,177.22,45.60270398]
[1753976373652,0.65,177.25,177.22,45.60270398]
[1753976374410,98.77750468,177.27,177.23,6.02085905]
[1753976374615,98.77750468,177.27,177.24,39.96]
[1753976375336,0.72,177.26,177.24,39.96]
[1753976375522,104.07836373,177.27,177.24,39.96]
[1753976375523,0.72,177.25,177.24,39.96]
[1753976375710,104.07836373,177.27,177.24,39.96]
[1753976375711,0.72,177.26,177.24,39.96]
[1753976376437,0.72,177.26,177.24,45.60200847]
[1753976376634,6.74085905,177.26,177.24,39.96]
[1753976376942,6.74085905,177.26,177.2,39.96]
[1753976376943,104.79836373,177.25,177.2,39.96]
[1753976377231,6.74085905,177.24,177.2,39.96]
[1753976377439,6.74085905,177.24,177.2,40.66]
[1753976377657,98.05750468,177.25,177.21,6.02085905]
[1753976377938,98.05750468,177.25,177.22,39.96]
[1753976378538,98.05750468,177.25,177.22,52.32332143]
[1753976380230,98.05750468,177.25,177.23,6.02085905]
[1753976380410,98.05750468,177.25,177.24,45.60206725]
[1753976381615,6.74085905,177.28,177.24,51.6229263]
[1753976381834,0.72,177.28,177.24,46.30206725]
[1753976382024,98.05750468,177.29,177.26,6.02085905]
[1753976382229,98.05750468,177.29,177.27,6.02085905]
[1753976382411,98.05750468,177.29,177.28,5.64079422]
[1753976382826,98.05750468,177.29,177.28,45.60079422]
[1753976383118,98.77750468,177.35,177.28,52.32165327]
[1753976383316,3.80166116,177.34,177.31,6.02085905]
[1753976383536,4.52166116,177.34,177.31,6.02085905]
[1753976383712,98.05750468,177.35,177.32,45.98085905]
[1753976384109,98.77750468,177.35,177.32,45.98085905]
[1753976384334,98.05750468,177.35,177.32,45.98085905]
[1753976384536,0.72,177.34,177.32,51.62032982]
[1753976385014,0.72,177.34,177.32,45.98085905]
[1753976385220,98.05750468,177.35,177.32,39.96]
[1753976385424,0.72,177.33,177.32,39.96]
[1753976389723,98.77750468,177.35,177.32,45.59952176]
[1753976390442,98.05750468,177.35,177.34,6.02085905]
[1753976390744,98.05750468,177.35,177.34,45.57888575]
[1753976391923,98.05750468,177.35,177.34,39.94]
[1753976393134,98.05750468,177.35,177.34,46.27888575]
[1753976393441,98.05750468,177.35,177.34,52.2997448]
[1753976393648,98.05750468,177.35,177.34,51.5997448]
[1753976394228,98.05750468,177.35,177.34,45.57888575]
[1753976397043,98.05750468,177.35,177.34,52.2997448]
[1753976399654,98.05750468,177.35,177.34,46.27888575]
[1753976399832,98.05750468,177.35,177.34,52.2997448]
[1753976400545,98.05750468,177.35,177.34,51.5997448]
[1753976400726,98.05750468,177.4,177.34,52.2997448]
[1753976400933,98.05750468,177.4,177.38,6.02085905]
[1753976401230,98.05750468,177.4,177.38,39.92]
[1753976401429,98.05750468,177.4,177.38,51.57831657]
[1753976401624,98.05750468,177.4,177.38,45.55745752]
[1753976401854,98.05750468,177.4,177.38,46.25745752]
[1753976402152,98.05750468,177.4,177.38,51.57831657]
[1753976403146,0.72,177.39,177.34,2.76455223]
[1753976403352,98.05750468,177.4,177.37,11.65879105]
[1753976403524,98.05750468,177.4,177.38,45.94085905]
[1753976403722,98.05750468,177.4,177.38,40.62]
[1753976403928,98.05750468,177.4,177.39,6.02085905]
[1753976404150,98.05750468,177.4,177.38,46.64085905]
[1753976404359,98.05750468,177.4,177.38,45.94085905]
[1753976404741,98.71750468,177.4,177.38,39.92]
[1753976405352,98.05750468,177.4,177.39,5.63729635]
[1753976406338,98.05750468,177.4,177.38,51.57836265]
[1753976406537,0.66,177.39,177.38,39.92]
[1753976406758,0.66,177.39,177.38,45.55761416]
[1753976406967,0.66,177.39,177.38,39.92]
[1753976408046,98.05750468,177.4,177.38,39.92]
[1753976408363,98.71750468,177.4,177.38,51.57845351]
[1753976408554,98.71750468,177.4,177.38,45.94085905]
[1753976408755,98.71750468,177.4,177.38,39.92]
[1753976409077,0.66,177.39,177.32,14.66217332]
[1753976409243,0.66,177.39,177.34,45.53888575]
[1753976409569,0.66,177.39,177.36,6.02085905]
[1753976409777,0.66,177.39,177.37,39.9]
[1753976409941,98.05750468,177.4,177.37,39.9]
[1753976409942,0.66,177.38,177.37,39.9]
[1753976410270,0.66,177.38,177.34,11.6597315]
[1753976410445,6.68085905,177.38,177.35,39.9]
[1753976410640,0.66,177.37,177.35,39.9]
[1753976410855,0.66,177.36,177.35,39.9]
[1753976411062,0.66,177.37,177.35,39.9]
[1753976411347,0.66,177.36,177.35,39.9]
[1753976411836,0.66,177.36,177.28,0.56407942]
[1753976412037,6.02085905,177.35,177.3,6.02085905]
[1753976412259,0.66,177.34,177.31,45.92085905]
[1753976413157,0.66,177.39,177.33,6.02085905]
[1753976413354,6.68085905,177.39,177.34,45.92085905]
[1753976413563,6.02085905,177.38,177.34,39.9]
[1753976413944,0.66,177.37,177.34,39.9]
[1753976414149,0.66,177.38,177.34,46.59085905]
[1753976414356,0.66,177.37,177.34,39.9]
[1753976414561,6.68085905,177.39,177.35,0.67]
[1753976414773,98.05750468,177.4,177.34,39.9]
[1753976414936,98.05750468,177.4,177.37,6.02085905]
[1753976415671,98.71750468,177.4,177.37,6.02085905]
[1753976415833,98.05750468,177.4,177.37,6.02085905]
[1753976416039,98.05750468,177.4,177.36,40.57]
[1753976416263,104.35454206,177.4,177.36,40.57]
[1753976416464,0.66,177.39,177.36,39.9]
[1753976416668,109.71540111,177.4,177.36,39.9]
[1753976416875,6.68085905,177.38,177.36,39.9]
[1753976417037,103.69454206,177.4,177.36,39.9]
[1753976417038,0.66,177.37,177.36,39.9]
[1753976417237,6.68085905,177.39,177.36,39.9]
[1753976417682,0.66,177.38,177.36,39.9]
[1753976417841,104.73836373,177.4,177.36,39.9]
[1753976418241,98.71750468,177.4,177.36,6.02085905]
[1753976418445,98.71750468,177.4,177.36,46.59085905]
[1753976418868,98.71750468,177.4,177.36,40.57]
[1753976419068,98.71750468,177.4,177.36,52.22902977]
[1753976419370,98.05750468,177.4,177.39,6.02085905]
[1753976419578,98.05750468,177.43,177.39,46.59085905]
[1753976419779,0.66,177.42,177.39,39.9]
[1753976420078,0.66,177.41,177.39,39.9]
[1753976420374,0.66,177.4,177.39,39.9]
[1753976420552,109.71442116,177.43,177.39,39.9]
[1753976420867,0.66,177.42,177.39,39.9]
[1753976421067,0.66,177.41,177.39,39.9]
[1753976421279,6.02085905,177.4,177.36,39.9]
[1753976421445,0.66,177.39,177.36,39.9]
[1753976421872,0.66,177.39,177.36,45.92085905]
[1753976422172,0.66,177.39,177.36,39.9]
[1753976422383,6.68085905,177.41,177.36,46.59085905]
[1753976422581,0.66,177.4,177.36,46.59085905]
[1753976422741,5.63675818,177.41,177.36,45.92085905]
[1753976423053,0.66,177.4,177.36,45.92085905]
[1753976423470,0.66,177.4,177.36,46.59085905]
[1753976423768,98.71750468,177.43,177.39,6.02085905]
[1753976423945,98.71750468,177.43,177.39,6.69085905]
[1753976424355,98.05750468,177.43,177.39,51.55795197]
[1753976424554,98.05750468,177.43,177.4,0.67]
[1753976424854,0.66,177.42,177.34,6.30868145]
[1753976425082,6.02085905,177.39,177.35,39.9]
[1753976425372,0.66,177.38,177.35,39.9]
[1753976425573,6.02085905,177.39,177.35,39.9]
[1753976425752,6.68085905,177.39,177.35,40.57]
[1753976426147,0.66,177.39,177.35,39.9]
[1753976426353,0.66,177.38,177.35,45.53849893]
[1753976426655,6.02085905,177.39,177.35,45.53849893]
[1753976426971,6.68085905,177.39,177.35,46.20849893]
[1753976427148,6.68085905,177.39,177.35,40.57]
[1753976427348,6.02085905,177.37,177.34,39.88]
[1753976427571,6.68085905,177.38,177.34,40.55]
[1753976427767,6.29707658,177.4,177.35,0.67]
[1753976427969,6.68085905,177.39,177.35,0.67]
[1753976428649,6.68085905,177.39,177.34,45.51885233]
[1753976428650,6.68085905,177.38,177.34,39.88]
[1753976428965,6.68085905,177.38,177.34,40.55]
[1753976429166,0.66,177.38,177.34,40.55]
[1753976430773,0.66,177.38,177.34,46.18878979]
[1753976430969,11.65832214,177.39,177.35,0.67]
[1753976431771,6.68085905,177.39,177.35,0.67]
[1753976432668,0.66,177.39,177.35,6.30854385]
[1753976432872,103.69423393,177.41,177.36,0.67]
[1753976433167,6.68085905,177.4,177.34,52.2096628]
[1753976434065,6.68085905,177.4,177.34,51.5396628]
[1753976434378,6.68085905,177.4,177.35,6.74085905]
[1753976434561,0.71,177.39,177.35,0.72]
[1753976435079,0.71,177.38,177.34,45.51880375]
[1753976435258,0.71,177.38,177.34,39.88]
[1753976436388,6.3476617,177.38,177.34,40.6]
[1753976437372,5.63737318,177.39,177.34,39.88]
[1753976437566,0.71,177.37,177.34,39.88]
[1753976437779,6.02085905,177.38,177.34,39.88]
[1753976438089,6.73085905,177.37,177.34,39.88]
[1753976438462,12.36882813,177.37,177.34,39.88]
[1753976438665,12.36882813,177.37,177.33,0.72]
[1753976438863,12.36882813,177.37,177.33,40.6]
[1753976440259,11.65882813,177.37,177.33,40.6]
[1753976440584,6.02085905,177.35,177.33,39.88]
[1753976440779,104.78836373,177.34,177.28,0.72]
[1753976440957,6.02085905,177.33,177.29,39.88]
[1753976441158,6.73085905,177.33,177.29,40.6]
[1753976442486,6.73085905,177.32,177.29,39.88]
[1753976442784,6.02085905,177.3,177.26,39.88]
[1753976442959,6.02085905,177.29,177.26,39.88]
[1753976443472,6.73085905,177.3,177.26,40.6]
[1753976443671,0.71,177.32,177.27,0.72]
[1753976443873,6.02085905,177.31,177.27,0.72]
[1753976444074,6.02085905,177.31,177.28,0.72]
[1753976444871,6.02085905,177.3,177.26,46.2413114]
[1753976445394,6.02085905,177.3,177.26,39.88]
[1753976445395,0.71,177.29,177.26,39.88]
[1753976445566,6.02085905,177.28,177.26,39.88]
[1753976446066,6.73085905,177.29,177.26,39.88]
[1753976447089,6.73085905,177.28,177.24,39.88]
[1753976447277,0.71,177.28,177.24,40.6]
[1753976447592,98.05750468,177.3,177.26,6.02085905]
[1753976447889,104.07836373,177.3,177.27,0.72]
[1753976448069,104.78836373,177.3,177.25,11.66257187]
[1753976448270,110.42854293,177.3,177.25,12.38257187]
[1753976448697,6.02085905,177.29,177.25,0.72]
[1753976448997,6.73085905,177.29,177.25,0.72]
[1753976449381,6.73085905,177.29,177.24,51.54281148]
[1753976449573,6.02085905,177.29,177.26,0.72]
[1753976449779,109.71854293,177.3,177.26,0.72]
[1753976450196,110.42854293,177.3,177.26,0.72]
[1753976450495,109.71854293,177.3,177.25,6.02085905]
[1753976450691,6.73085905,177.29,177.24,52.26281148]
[1753976450989,6.73085905,177.29,177.25,0.72]
[1753976451686,6.73085905,177.29,177.24,51.54281148]
[1753976452771,104.78836373,177.3,177.25,12.3825082]
[1753976452970,104.78836373,177.3,177.26,0.72]
[1753976453373,98.76750468,177.3,177.26,0.72]
[1753976453672,104.78836373,177.3,177.26,0.72]
[1753976454971,0.71,177.29,177.26,0.72]
[1753976455173,6.02085905,177.27,177.21,0.72]
[1753976455396,6.02085905,177.25,177.22,39.88]
[1753976455597,6.73085905,177.25,177.22,39.88]
[1753976455896,6.02085905,177.23,177.18,5.6439173]
[1753976456095,6.02085905,177.21,177.18,39.88]
[1753976456409,0.71,177.21,177.18,39.88]
[1753976456585,6.02085905,177.22,177.18,45.52392958]
[1753976456786,0.71,177.23,177.18,46.24392958]
[1753976457098,6.02085905,177.22,177.18,46.24392958]
[1753976457298,6.73085905,177.22,177.18,46.24392958]
[1753976457805,6.73085905,177.22,177.18,6.36392958]
[1753976458100,6.73085905,177.22,177.18,46.24392958]
[1753976458299,6.73085905,177.21,177.18,39.88]
[1753976458681,6.73085905,177.2,177.18,39.88]
[1753976458879,0.71,177.2,177.18,39.88]